[Event "GER-chT Youth Countries 2018"]
[Site "Wurzburg"]
[Date "2018.10.07"]
[Round "7"]
[White "Degenhard, Simon"]
[Black "Riehle, Marco"]
[Result "0-1"]
[ECO "D41"]
[WhiteElo "2207"]
[BlackElo "2265"]
[Annotator "NA"]
[PlyCount "110"]
[EventDate "2018.10.03"]
[EventType "team-tourn"]
[EventCountry "GER"]
[SourceTitle "playchess.com"]
[Source "ChessBase"]
[SourceQuality "1"]
[TimeControl "40/5400+30:1800+30"]

{[%evp 8,106,37,38,22,26,22,27,36,13,22,33,29,22,32767,32767,32767,32767,-22,-31,0,-21,0,-56,31,31,57,50,72,52,154,178,237,60,60,58,32767,32767,16,22,4,10,15,20,32767,32767,0,0,0,0,32767,-61,-19,-65,32767,0,32767,-22,32767,-37,-12,-30,32767,32767,32767,32767,-11,-10,-8,0,32767,32767,-25,-45,-41,-32,32767,-150,-223,-265,-216,-290,32767,32767,32767,-1808,32767,-4133,-5097,32767,-5126,-29979,32767,32767,32767,32767,32767,-29991,-29992,-29994,-29995]} 1. Nf3 {[%emt 0:00:00]} Nf6 {[%emt 0:00:28]} 2. d4 {[%emt 0:00:00]} d5 {[%emt 0:00:44]} 3. c4 {[%emt 0:00:00]} e6 {[%emt 0:00:08]} 4. Nc3 {[%emt 0:00:01]} c5 {[%emt 0:01:40]} 5. cxd5 {[%emt 0:00:22]} Nxd5 {[%emt 0:01:26]} 6. g3 {[%emt 0:00:19]} Nc6 {[%emt 0:05:48]} 7. Bg2 {[%emt 0:00:32]} Be7 {[%emt 0:01:43]} 8. O-O {[%emt 0:00:36] LiveBook: 729 Games} O-O {[%emt 0:00:42]} 9. e4 {[%emt 0:00:13]} Nxc3 {[%emt 0:03:27]} 10. bxc3 {[%emt 0:00:07]} b6 {[%emt 0:03:43]} 11. Bb2 {[%emt 0:07:06] D41: Queen's Gambit Declined: Semi-Tarrasch with 5 cxd5} (11. d5 Na5 12. Qc2 exd5 13. exd5 Nc4 14. Bf4 Nd6 15. Ne5 Bf5 16. Qc1 Bf6 17. Re1 h6 18. h4 Re8 19. g4 {½-½ (73) Neef,M (2453)-Jakubowski,K (2529) Germany 2018}) 11... Bb7 12. Rc1 $146 {[%emt 0:01:18]} ({Predecessor:} 12. Qe2 cxd4 13. cxd4 Rc8 14. Rad1 Nb4 15. a3 Ba6 16. Qe3 Bxf1 17. Bxf1 Nc6 18. Ba6 Rc7 {1-0 (71) Kahlert,T (2192)-Simon,M (1985) Nuremberg 2006}) 12... Na5 {[%emt 0:04:55]} 13. Qd3 {[%emt 0:05:34]} b5 {[%emt 0:10:11]} 14. Nd2 {[%emt 0:07:07]} a6 {[%emt 0:02:53]} 15. f4 {[%emt 0:02:02]} (15. Qe3 $11) 15... c4 {[%emt 0:08:00]} ({Black should try} 15... Qb6 $15) 16. Qe2 {[%emt 0:02:09]} f5 {[%emt 0:04:30]} 17. Rce1 {[%emt 0:03:45]} Bd6 {[%emt 0:05:38]} 18. g4 {[%emt 0:08:32]} fxe4 {[%emt 0:05:13]} ({Better is} 18... Qd7 $14) 19. Nxe4 {[%emt 0:04:32]} Bxf4 {[%emt 0:04:41] [#]} (19... Rxf4 $142 20. Nxd6 Rxf1+ 21. Bxf1 (21. Rxf1 Qxd6 22. Bxb7 Nxb7 $11) 21... Qxd6) 20. Nc5 $2 {[%emt 0:02:18]} ({White must play} 20. Ba3 $1 $18 {[%cal Ra3f8]} Qh4 21. Ng3 Bxg3 22. Rxf8+ Rxf8 23. hxg3 Qxg3 24. Bxf8 Kxf8 25. Qf2+ Qxf2+ 26. Kxf2) 20... Bxg2 {[%emt 0:02:00]} 21. Qxg2 {[%emt 0:00:11]} Qd6 {[%emt 0:00:53]} 22. Rxf4 {[%emt 0:11:11]} Qxf4 {[%emt 0:00:51]} 23. Nxe6 {[%emt 0:00:11]} Qd6 {[%emt 0:02:20]} 24. Nxf8 {[%emt 0:00:33]} Rxf8 {[%emt 0:00:02]} 25. Qe4 {[%emt 0:07:43]} Kh8 {[%emt 0:01:59]} 26. Rf1 {[%emt 0:05:18]} Rxf1+ {[%emt 0:01:51]} 27. Kxf1 {[%emt 0:00:01]} h6 {[%emt 0:00:16]} 28. Kg2 {[%emt 0:01:13]} Nc6 {[%emt 0:02:02]} 29. Bc1 {[%emt 0:01:20]} ({White should try} 29. Ba3 $11 Qxa3 30. Qe8+ Kh7 31. Qe4+ g6 32. Qxc6) 29... Ne7 {[%emt 0:01:25]} 30. Qa8+ {[%emt 0:04:32]} Kh7 {[%emt 0:00:59]} 31. Qe4+ {[%emt 0:02:34]} Kg8 {[%emt 0:02:35]} 32. Bf4 {[%emt 0:05:48]} Qd5 {[%emt 0:00:36]} 33. Kf3 {[%emt 0:01:21]} Kf7 {[%emt 0:00:40]} 34. Ke3 {[%emt 0:00:17]} Qxe4+ {[%emt 0:03:12]} 35. Kxe4 {[%emt 0:00:13]} Ke6 {[%emt 0:00:00]} 36. h4 {[%emt 0:04:01]} Nd5 {[%emt 0:01:53]} 37. Bd2 {[%emt 0:00:02]} Nf6+ {[%emt 0:00:47]} 38. Kf4 {[%emt 0:04:44]} Kd5 {[%emt 0:01:23]} 39. a3 {[%emt 0:10:22]} Ne4 {[%emt 0:01:56]} 40. Be1 $1 {[%emt 0:00:01]} g6 {[%emt 0:00:17]} 41. Kf3 {[%emt 0:06:30]} a5 {[%emt 0:02:50]} 42. Ke3 {[%emt 0:07:49]} (42. h5 $15 g5 43. Ke2) 42... a4 {[%emt 0:01:59]} 43. Bd2 {[%emt 0:01:40]} h5 {[%emt 0:01:56]} 44. gxh5 {[%emt 0:02:54]} gxh5 {[%emt 0:01:27]} 45. Be1 {[%emt 0:00:08]} Nd6 {[%emt 0:00:15]} 46. Bf2 $2 {[%emt 0:03:58] [#]} (46. Kd2 Ke4 47. Bg3) 46... b4 $1 {[%emt 0:01:15]} 47. cxb4 {[%emt 0:01:17]} Nb5 {[%emt 0:00:04]} 48. Kd2 {[%emt 0:04:14]} Nxa3 {[%emt 0:02:00]} 49. Kc3 {[%emt 0:00:11]} Nb5+ {[%emt 0:00:04]} 50. Kb2 {[%emt 0:00:13]} c3+ {[%emt 0:00:04]} 51. Kc2 {[%emt 0:00:27]} Kc4 {[%emt 0:00:04]} 52. d5 {[%emt 0:01:20]} a3 {[%emt 0:00:05]} 53. d6 {[%emt 0:00:31]} a2 {[%emt 0:00:04]} 54. d7 {[%emt 0:00:15]} a1=Q {[%emt 0:00:11]} 55. d8=Q {[%emt 0:00:05]} Na3# 0-1

[Event "GER-chT Youth Countries 2018"]
[Site "Wurzburg"]
[Date "2018.10.07"]
[Round "7"]
[White "Leeb, Simon"]
[Black "Muckle, Julius"]
[Result "1-0"]
[ECO "D11"]
[WhiteElo "2203"]
[BlackElo "2348"]
[Annotator "ChessBase"]
[PlyCount "83"]
[EventDate "2018.10.03"]
[EventType "team-tourn"]
[EventCountry "GER"]
[SourceTitle "playchess.com"]
[Source "ChessBase"]
[SourceQuality "1"]
[TimeControl "40/5400+30:1800+30"]

1. d4 {[%emt 0:00:00]} d5 {[%emt 0:00:00]} 2. c4 {[%emt 0:00:00]} c6 {[%emt 0:00:00]} 3. Nf3 {[%emt 0:00:00]} Nf6 {[%emt 0:00:00]} 4. e3 {[%emt 0:00:00]} Bg4 {[%emt 0:04:08]} 5. Nc3 {[%emt 0:04:44]} e6 {[%emt 0:02:46]} 6. h3 {[%emt 0:00:58]} Bh5 {[%emt 0:00:33]} 7. g4 {[%emt 0:01:07]} Bg6 {[%emt 0:02:46]} 8. Nh4 {[%emt 0:00:33]} dxc4 {[%emt 0:05:17]} 9. Bxc4 {[%emt 0:03:22]} Nbd7 {[%emt 0:04:16]} 10. Qb3 {[%emt 0:04:21]} Be4 {[%emt 0:16:12]} 11. Rg1 {[%emt 0:13:29]} b5 {[%emt 0:31:03]} 12. Be2 {[%emt 0:09:18]} Nd5 {[%emt 0:07:55]} 13. Nxe4 {[%emt 0:04:41]} Qxh4 {[%emt 0:00:41]} 14. Bd2 {[%emt 0:00:40]} Be7 {[%emt 0:03:47]} 15. Rc1 {[%emt 0:02:54]} O-O {[%emt 0:02:54]} 16. Rxc6 {[%emt 0:02:02]} Rac8 {[%emt 0:11:51]} 17. Rxc8 {[%emt 0:12:19]} Rxc8 {[%emt 0:00:02]} 18. Ng3 {[%emt 0:00:08]} a6 {[%emt 0:02:14]} 19. Nf5 {[%emt 0:02:03]} Qxh3 {[%emt 0:00:17]} 20. Ng3 {[%emt 0:02:54]} Bd6 {[%emt 0:02:43]} 21. e4 {[%emt 0:04:21]} Bxg3 22. exd5 {[%emt 0:00:39]} Bxf2+ {[%emt 0:01:00]} 23. Kxf2 {[%emt 0:00:05]} Qh4+ {[%emt 0:00:28]} 24. Qg3 {[%emt 0:01:18]} Qf6+ {[%emt 0:00:06]} 25. Qf4 {[%emt 0:00:20]} Qh4+ {[%emt 0:00:59]} 26. Kg2 {[%emt 0:01:59]} exd5 27. Bd3 {[%emt 0:01:20]} g6 {[%emt 0:01:00]} 28. Rh1 {[%emt 0:02:55]} Qe7 {[%emt 0:00:21]} 29. a3 {[%emt 0:02:50]} f6 {[%emt 0:00:40]} 30. Re1 {[%emt 0:01:36]} Qf7 {[%emt 0:00:28]} 31. Qd6 {[%emt 0:01:44]} Re8 {[%emt 0:00:26]} 32. Rxe8+ {[%emt 0:00:42]} Qxe8 {[%emt 0:00:01]} 33. Qxd5+ {[%emt 0:00:09]} Kg7 {[%emt 0:00:44]} 34. a4 {[%emt 0:01:18]} Nf8 {[%emt 0:00:51]} 35. axb5 {[%emt 0:00:34]} axb5 {[%emt 0:00:05]} 36. Bxb5 {[%emt 0:00:24]} Qc8 {[%emt 0:00:05]} 37. Qe4 {[%emt 0:02:54]} Ne6 {[%emt 0:00:20]} 38. d5 {[%emt 0:01:57]} Nd8 {[%emt 0:00:21]} 39. Be8 {[%emt 0:01:30]} Qc7 {[%emt 0:01:31]} 40. Bb4 {[%emt 0:00:45]} Qb6 {[%emt 0:00:38]} 41. Qe7+ {[%emt 0:30:42]} Kh6 {[%emt 0:30:11]} 42. Bd2+ 1-0

[Event "GER-chT Youth Countries 2018"]
[Site "Wurzburg"]
[Date "2018.10.07"]
[Round "7"]
[White "Nguyen, Huy Dat"]
[Black "Kololli, Martin"]
[Result "1-0"]
[ECO "C30"]
[WhiteElo "2194"]
[BlackElo "2331"]
[Annotator "ChessBase"]
[PlyCount "55"]
[EventDate "2018.10.03"]
[EventType "team-tourn"]
[EventCountry "GER"]
[SourceTitle "playchess.com"]
[Source "ChessBase"]
[SourceQuality "1"]
[TimeControl "40/5400+30:1800+30"]

1. e4 {[%emt 0:00:00]} e5 {[%emt 0:00:00]} 2. f4 {[%emt 0:00:00]} d6 {[%emt 0:04:12]} 3. Bc4 {[%emt 0:01:18]} Nf6 {[%emt 0:01:02]} 4. Nc3 {[%emt 0:03:25]} Nc6 {[%emt 0:22:35]} 5. Nf3 {[%emt 0:05:15]} Be7 {[%emt 0:02:03]} 6. d4 {[%emt 0:17:37]} exd4 {[%emt 0:07:14]} 7. Nxd4 {[%emt 0:00:04]} O-O {[%emt 0:01:06]} 8. O-O {[%emt 0:04:50]} d5 {[%emt 0:25:13]} 9. Nxc6 {[%emt 0:04:19]} bxc6 {[%emt 0:01:02]} 10. exd5 {[%emt 0:01:57]} Bc5+ {[%emt 0:02:38]} 11. Kh1 {[%emt 0:00:04]} Ng4 {[%emt 0:00:42]} 12. Ne4 {[%emt 0:04:21]} Bb6 {[%emt 0:07:02]} 13. f5 {[%emt 0:04:21]} Qh4 {[%emt 0:02:58]} 14. Bf4 {[%emt 0:00:52]} Nf2+ {[%emt 0:04:32]} 15. Rxf2 {[%emt 0:00:36]} Bxf2 {[%emt 0:00:17]} 16. Qf3 {[%emt 0:00:25]} Bxf5 {[%emt 0:02:55]} 17. Nxf2 {[%emt 0:00:46]} Bxc2 {[%emt 0:01:04]} 18. Rc1 {[%emt 0:01:59]} Qe7 {[%emt 0:03:12]} 19. h3 {[%emt 0:02:07]} Bg6 {[%emt 0:00:33]} 20. dxc6 {[%emt 0:00:28]} Rfe8 {[%emt 0:00:46]} 21. Qg3 {[%emt 0:01:37]} Qf6 {[%emt 0:01:50]} 22. b3 {[%emt 0:07:16]} Rad8 {[%emt 0:01:01]} 23. Bxc7 {[%emt 0:02:28]} Rc8 {[%emt 0:01:39]} 24. Ng4 {[%emt 0:01:51]} Qb2 {[%emt 0:01:18]} 25. Rf1 {[%emt 0:01:17]} Qxa2 {[%emt 0:02:11]} 26. Bxf7+ {[%emt 0:07:56]} Bxf7 {[%emt 0:00:22]} 27. Nh6+ {[%emt 0:00:06]} Kf8 {[%emt 0:01:17]} 28. Rxf7# 1-0

[Event "GER-chT Youth Countries 2018"]
[Site "Wurzburg"]
[Date "2018.10.07"]
[Round "7"]
[White "Schmider, Niklas"]
[Black "Krastev, Alexander"]
[Result "0-1"]
[ECO "C77"]
[WhiteElo "2190"]
[BlackElo "2298"]
[Annotator "NA"]
[PlyCount "70"]
[EventDate "2018.10.03"]
[EventType "team-tourn"]
[EventCountry "GER"]
[SourceTitle "playchess.com"]
[Source "ChessBase"]
[SourceQuality "1"]
[TimeControl "40/5400+30:1800+30"]

{[%evp 8,69,23,20,32767,32767,32767,32767,32767,32767,32767,32767,32767,-15,-7,-4,0,-8,-11,-5,0,-33,-29,-25,-22,-77,-54,-121,-110,-103,-90,32767,-158,-159,32767,-139,32767,-158,-152,-145,-141,-206,-185,32767,32767,-194,-190,32767,32767,-199,-189,32767,-202,32767,32767,32767,32767,32767,32767,-234,-227,32767,32767,-324]} 1. e4 {[%emt 0:00:00]} e5 {[%emt 0:00:00]} 2. Nf3 {[%emt 0:00:00]} Nc6 {[%emt 0:00:00]} 3. Bb5 {[%emt 0:00:00]} a6 {[%emt 0:00:00]} 4. Ba4 {[%emt 0:00:01]} Nf6 {[%emt 0:00:00]} 5. d3 {[%emt 0:00:07]} b5 {[%emt 0:00:11]} 6. Bb3 {[%emt 0:00:04]} Bc5 {[%emt 0:00:07]} 7. Nc3 {[%emt 0:00:41]} d6 {[%emt 0:01:53] C77: Ruy Lopez: 3...a6 4 Ba4 Nf6, unusual lines} 8. Nd5 {[%emt 0:00:09]} h6 {[%emt 0:00:21]} 9. c3 {[%emt 0:00:14]} (9. O-O O-O 10. Be3 Bxe3 11. fxe3 Na5 12. Nxf6+ Qxf6 13. Bd5 c6 14. Nd4 Qg5 15. Nxc6 Nxc6 16. Bxc6 Qxe3+ {½-½ (32) Anand,V (2760)-Mamedyarov,S (2808) Stavanger 2018}) 9... Be6 {[%emt 0:00:36]} 10. O-O {[%emt 0:08:48]} Bxd5 {[%emt 0:00:40]} 11. exd5 {[%emt 0:00:45]} Ne7 {[%emt 0:00:05]} 12. d4 {[%emt 0:04:32] LiveBook: 13 Games} exd4 {[%emt 0:00:06]} 13. Nxd4 {[%emt 0:00:05]} Qd7 {[%emt 0:00:04] [#]} 14. Be3 $146 {[%emt 0:31:52]} ({Predecessor:} 14. Ne2 O-O 15. a4 {½-½ (38) Kasimdzhanov,R (2676)-Fressinet,L (2657) Douglas 2017}) 14... O-O {[%emt 0:32:59]} 15. Nc2 {[%emt 0:10:07]} Nf5 {[%emt 0:04:30]} 16. Bf4 {[%emt 0:02:23]} (16. Bd4 $11 Bxd4 17. Nxd4) 16... Rae8 {[%emt 0:02:01]} 17. Qf3 {[%emt 0:03:30]} ({White should play} 17. Re1 $15) 17... Re4 {[%emt 0:16:54]} 18. Rae1 {[%emt 0:07:15]} Rfe8 {[%emt 0:00:32]} ({Better is} 18... Nh4 19. Qg3 g5 20. Bxg5 Nh5 21. Qxh4 Rxh4 22. Bxh4 Qg4) 19. g3 {[%emt 0:10:52] [#]} Nh4 $1 {[%emt 0:09:10]} 20. gxh4 {[%emt 0:02:34]} Qf5 {[%emt 0:00:17]} 21. Rxe4 {[%emt 0:01:26]} Rxe4 {[%emt 0:00:13]} 22. Ne3 {[%emt 0:00:57]} Qxf4 {[%emt 0:00:11]} 23. Qxf4 {[%emt 0:00:58]} Rxf4 {[%emt 0:00:05]} 24. Re1 {[%emt 0:05:07]} Rxh4 {[%emt 0:04:53]} 25. Ng2 {[%emt 0:02:11]} Rh5 {[%emt 0:03:33]} 26. Nf4 {[%emt 0:02:00]} Rf5 {[%emt 0:00:16]} 27. Nd3 {[%emt 0:00:07]} Bb6 {[%emt 0:00:07]} 28. c4 {[%emt 0:02:36]} Ng4 {[%emt 0:09:26]} 29. Re2 {[%emt 0:01:35]} Kf8 {[%emt 0:05:29]} 30. cxb5 {[%emt 0:01:50]} axb5 {[%emt 0:00:07]} 31. a4 {[%emt 0:00:27]} bxa4 {[%emt 0:00:31]} 32. Bxa4 {[%emt 0:00:06]} Nf6 {[%emt 0:00:22]} 33. Bc6 {[%emt 0:00:16]} g6 {[%emt 0:01:05]} 34. Nb4 {[%emt 0:00:27]} Rf4 {[%emt 0:00:30]} 35. Nc2 $19 {[%emt 0:01:46]} Ne4 {[%emt 0:00:51]} 0-1

[Event "GER-chT Youth Countries 2018"]
[Site "Wurzburg"]
[Date "2018.10.07"]
[Round "7"]
[White "Goldbeck, Lars"]
[Black "Keyser, Robin"]
[Result "1/2-1/2"]
[ECO "D11"]
[WhiteElo "2184"]
[BlackElo "1999"]
[Annotator "NA"]
[PlyCount "111"]
[EventDate "2018.10.03"]
[EventType "team-tourn"]
[EventCountry "GER"]
[SourceTitle "playchess.com"]
[Source "ChessBase"]
[SourceQuality "1"]
[TimeControl "40/5400+30:1800+30"]

{[%evp 29,105,97,81,91,119,122,127,101,96,100,97,102,112,67,83,76,84,61,32767,82,86,88,97,75,45,45,152,121,158,158,32767,32767,32767,154,154,176,161,161,176,159,161,157,159,32767,156,152,152,163,161,160,161,163,163,0,158,32767,153,195,168,0,156,0,32767,32767,168,187,176,32767,32767,32767,118,106,32767,32767,32767,32767,47,42]} 1. d4 {[%emt 0:00:00]} Nf6 {[%emt 0:00:00]} 2. Nf3 {[%emt 0:00:00]} d5 {[%emt 0:00:00]} 3. c4 {[%emt 0:00:54]} c6 {[%emt 0:00:18]} 4. e3 {[%emt 0:00:07]} Bg4 {[%emt 0:00:31]} 5. h3 {[%emt 0:00:06]} Bh5 {[%emt 0:00:17]} 6. g4 {[%emt 0:00:50] D11: Slav Defence: 3 Nf3 sidelines and 3...Nf6 4 e3 Bg4} (6. Nc3 e6 7. g4 Bg6 8. Ne5 Nbd7 9. Nxg6 hxg6 10. g5 Ng8 11. h4 Bb4 12. Qb3 Bxc3+ 13. bxc3 Ne7 14. Ba3 Nb6 15. Bxe7 Qxe7 {½-½ (85) Ding,L (2774)-Carlsen,M (2837) Saint Louis 2017}) 6... Bg6 {[%emt 0:00:09]} 7. Ne5 {[%emt 0:00:04]} Nbd7 {[%emt 0:01:36]} 8. Nxg6 {[%emt 0:00:57]} hxg6 {[%emt 0:00:20]} 9. Nd2 {[%emt 0:01:56]} e6 {[%emt 0:01:21]} 10. Bg2 {[%emt 0:03:26]} Be7 {[%emt 0:05:10]} 11. g5 {[%emt 0:03:43]} Ne4 $146 {[%emt 0:00:36]} ({Predecessor:} 11... Nh5 12. h4 Qa5 13. O-O Qc7 {1-0 (63) Rogozenco,T (2096)-Groetzbach,D (2037) Lueneburg 2015}) 12. Nxe4 {[%emt 0:04:52]} dxe4 {[%emt 0:00:06]} 13. h4 {[%emt 0:01:34]} Qa5+ {[%emt 0:03:01]} 14. Bd2 {[%emt 0:00:38]} Qf5 {[%emt 0:00:23]} 15. Qc2 {[%emt 0:02:45]} O-O-O {[%emt 0:04:09]} 16. Qxe4 {[%emt 0:02:34]} Qxe4 {[%emt 0:02:16]} 17. Bxe4 {[%emt 0:00:01]} Rh7 {[%emt 0:00:08]} 18. Ke2 {[%emt 0:07:44]} Rdh8 {[%emt 0:01:29]} 19. f4 {[%emt 0:01:46]} Rxh4 {[%emt 0:00:25]} 20. Rxh4 {[%emt 0:00:30]} Rxh4 {[%emt 0:00:06]} 21. Rh1 {[%emt 0:00:02]} Rxh1 {[%emt 0:02:22]} 22. Bxh1 {[%emt 0:00:02]} f6 {[%emt 0:13:57]} 23. e4 {[%emt 0:08:39]} e5 {[%emt 0:00:45]} 24. fxe5 {[%emt 0:02:11]} fxe5 {[%emt 0:00:12] [#]} 25. d5 $1 {[%emt 0:01:00]} Kc7 {[%emt 0:02:07]} 26. b4 {[%emt 0:03:50]} c5 $1 {[%emt 0:01:31] [#]} 27. a3 $1 {[%emt 0:00:40]} b6 {[%emt 0:01:08]} (27... a6 $14) 28. Bg2 {[%emt 0:00:27]} Nf8 {[%emt 0:01:40] [#]} 29. Kf3 $1 {[%emt 0:00:38]} Nh7 {[%emt 0:03:18]} 30. Kg4 {[%emt 0:00:01]} Bd8 {[%emt 0:00:15]} 31. Bf3 {[%emt 0:02:40]} Kd6 {[%emt 0:01:14]} 32. Bd1 {[%emt 0:00:17]} Nf8 {[%emt 0:01:10]} 33. Ba4 {[%emt 0:00:26]} Bc7 {[%emt 0:01:14]} 34. Be3 {[%emt 0:06:27]} Bd8 {[%emt 0:01:33]} 35. Bb5 {[%emt 0:02:03]} a5 {[%emt 0:01:15]} 36. bxc5+ {[%emt 0:01:16]} bxc5 $1 {[%emt 0:00:06]} 37. Be8 {[%emt 0:00:09]} ({White should try} 37. Ba4 $18) 37... Ke7 {[%emt 0:00:17]} 38. Bc6 {[%emt 0:00:46]} Kd6 $11 {[%emt 0:00:13]} 39. Kh4 {[%emt 0:00:32]} Bb6 {[%emt 0:00:39]} 40. Kh3 {[%emt 0:00:22]} Bc7 {[%emt 0:01:00]} 41. Kg4 $2 {[%emt 0:30:14]} (41. Be8 $18) 41... Bb6 $2 {[%emt 0:30:38]} 42. Bb5 $2 {[%emt 0:03:10]} Bd8 {[%emt 0:01:49]} 43. Ba6 {[%emt 0:03:26]} Bb6 {[%emt 0:00:49]} 44. Bb5 {[%emt 0:00:38]} (44. Bf2 $18) 44... Bd8 {[%emt 0:00:07]} 45. Bc6 $2 {[%emt 0:00:14]} Bb6 {[%emt 0:00:54]} 46. Bd2 {[%emt 0:03:37]} Bd8 {[%emt 0:00:15]} 47. Kg3 {[%emt 0:00:36]} Nh7 {[%emt 0:01:48]} 48. Be8 {[%emt 0:02:30]} Nf8 {[%emt 0:00:16]} 49. Bf7 {[%emt 0:00:21]} Ke7 {[%emt 0:00:09]} 50. Bg8 {[%emt 0:00:06]} a4 {[%emt 0:00:41]} 51. Kf3 {[%emt 0:00:54]} Kd6 {[%emt 0:00:38]} 52. Ke2 {[%emt 0:05:18]} Bb6 $14 {[%emt 0:00:40]} 53. Kd3 {[%emt 0:00:16]} Ke7 {[%emt 0:00:20]} 54. Ke3 {[%emt 0:03:28]} Kd6 {[%emt 0:00:14]} 55. Kf3 {[%emt 0:00:01]} Ke7 {[%emt 0:00:22]} 56. Ke3 {[%emt 0:02:52]} 1/2-1/2

[Event "GER-chT Youth Countries 2018"]
[Site "Wurzburg"]
[Date "2018.10.07"]
[Round "7"]
[White "Garbuz, Vitaliy"]
[Black "Wong, Gengchun"]
[Result "1/2-1/2"]
[ECO "B50"]
[WhiteElo "2182"]
[BlackElo "2194"]
[Annotator "ChessBase"]
[PlyCount "78"]
[EventDate "2018.10.03"]
[EventType "team-tourn"]
[EventCountry "GER"]
[SourceTitle "playchess.com"]
[Source "ChessBase"]
[SourceQuality "1"]
[TimeControl "40/5400+30:1800+30"]

1. e4 {[%emt 0:00:00]} c5 {[%emt 0:00:00]} 2. Nf3 {[%emt 0:01:52]} d6 {[%emt 0:00:00]} 3. c3 {[%emt 0:00:16]} Nf6 {[%emt 0:00:00]} 4. h3 {[%emt 0:00:07]} Nbd7 {[%emt 0:00:00]} 5. Bd3 {[%emt 0:01:16]} g6 {[%emt 0:00:36]} 6. Bc2 {[%emt 0:00:13]} Bg7 {[%emt 0:00:43]} 7. d4 {[%emt 0:00:30]} e5 {[%emt 0:01:43]} 8. O-O {[%emt 0:01:27]} O-O {[%emt 0:00:09]} 9. Re1 {[%emt 0:01:54]} Re8 {[%emt 0:02:39]} 10. dxe5 {[%emt 0:01:09]} dxe5 {[%emt 0:01:03]} 11. Na3 {[%emt 0:00:14]} Qe7 {[%emt 0:14:54]} 12. Nc4 {[%emt 0:09:23]} Rd8 {[%emt 0:02:11]} 13. Qd6 {[%emt 0:01:48]} Qxd6 {[%emt 0:14:53]} 14. Nxd6 {[%emt 0:00:03]} Bf8 {[%emt 0:01:12]} 15. Nc4 {[%emt 0:01:12]} Re8 {[%emt 0:03:24]} 16. Bg5 {[%emt 0:00:51]} Nh5 {[%emt 0:12:44]} 17. Ba4 {[%emt 0:08:22]} f6 {[%emt 0:05:19]} 18. Rad1 {[%emt 0:13:47]} Re7 {[%emt 0:03:54]} 19. g4 {[%emt 0:26:28]} fxg5 {[%emt 0:11:49]} 20. gxh5 {[%emt 0:02:13]} gxh5 {[%emt 0:00:49]} 21. Bb3 {[%emt 0:14:36]} Kh8 {[%emt 0:01:34]} 22. Nd6 {[%emt 0:01:02]} h6 {[%emt 0:01:03]} 23. Nf5 {[%emt 0:01:43]} Rh7 {[%emt 0:02:36]} 24. Be6 {[%emt 0:02:03]} a5 {[%emt 0:04:59]} 25. Bxd7 {[%emt 0:04:41]} Rxd7 {[%emt 0:00:44]} 26. Nxe5 {[%emt 0:00:40]} Rxd1 {[%emt 0:00:13]} 27. Rxd1 {[%emt 0:00:43]} Bxf5 {[%emt 0:01:07]} 28. exf5 {[%emt 0:00:08]} Kg7 {[%emt 0:04:10]} 29. Nd7 {[%emt 0:02:24]} Ra6 {[%emt 0:00:56]} 30. Rd5 {[%emt 0:01:22]} Rd6 {[%emt 0:01:08]} 31. c4 {[%emt 0:01:37]} Rxd5 32. cxd5 {[%emt 0:00:01]} Bd6 {[%emt 0:02:06]} 33. a4 {[%emt 0:00:27]} Kf7 {[%emt 0:00:45]} 34. Kf1 {[%emt 0:01:07]} Ke7 {[%emt 0:00:57]} 35. Nb6 {[%emt 0:00:09]} Kf6 {[%emt 0:00:49]} 36. Nc4 {[%emt 0:00:16]} Bc7 {[%emt 0:00:02]} 37. Ne3 {[%emt 0:01:39]} Bf4 {[%emt 0:00:35]} 38. Nc4 {[%emt 0:00:43]} Bc7 {[%emt 0:04:59]} 39. Ne3 {[%emt 0:00:27]} Bf4 {[%emt 0:00:03]} 1/2-1/2